bitfinex/quotes_ETHUSD_20250731
["timestamp","ask_amount","ask_price","bid_price","bid_amount"]
[1753982803465,1e-08,3783.9,3783.8,10.96762581]
[1753982804158,1e-08,3783.9,3783.8,11.51762581]
[1753982805631,1e-08,3784.3,3784.2,5.64256646]
[1753982805840,1e-08,3784.3,3784.2,12.98782311]
[1753982806226,1e-08,3784.3,3784.2,14.00702311]
[1753982806658,1e-08,3784.3,3784.2,18.24802311]
[1753982807435,1e-08,3784.3,3784.2,14.00702311]
[1753982807649,1e-08,3784.3,3784.2,18.24602311]
[1753982807977,1e-08,3784.3,3784.2,14.00702311]
[1753982808128,1e-08,3784.3,3784.2,18.24602311]
[1753982808470,1e-08,3784.3,3784.2,18.73262311]
[1753982811531,1e-08,3784.9,3784.8,3.19214753]
[1753982811726,1e-08,3784.9,3784.8,10.87536228]
[1753982811936,1e-08,3784.9,3784.8,7.59916228]
[1753982812134,1e-08,3784.9,3784.8,11.83116228]
[1753982812379,1e-08,3784.9,3784.8,10.81196228]
[1753982812835,1e-08,3784.9,3784.8,6.57996228]
[1753982813042,1e-08,3784.9,3784.8,10.68096228]
[1753982813366,1e-08,3784.9,3784.8,7.19436228]
[1753982813741,1e-08,3784.9,3784.8,7.68096228]
[1753982813944,1e-08,3784.9,3784.8,14.68096228]
[1753982814486,1e-08,3784.9,3784.8,15.23096228]
[1753982814649,1e-08,3784.9,3784.8,18.70016228]
[1753982815039,1e-08,3784.9,3784.8,18.20016228]
[1753982815269,1e-08,3784.9,3784.8,20.00614564]
[1753982815588,1e-08,3784.9,3784.8,18.98494564]
[1753982815770,2.64082182,3786.7,3784.9,3.0]
[1753982815969,2.64096284,3786.5,3785.0,4.231]
[1753982816194,0.03301288,3786.4,3785.1,0.48478]
[1753982816340,2.64157786,3785.7,3784.9,2.64205615]
[1753982816681,2.92919049,3786.5,3785.0,4.234]
[1753982816844,2.64152423,3785.7,3785.0,6.87596258]
[1753982817039,2.64159796,3785.6,3785.0,4.234]
[1753982817245,2.64110081,3786.3,3785.0,6.87599144]
[1753982817458,2.6414032,3785.9,3785.2,2.64183811]
[1753982817659,2.6414505,3785.8,3785.3,4.231]
[1753982817880,0.29293134,3786.2,3785.3,4.231]
[1753982817881,3.0918285,3785.7,3785.3,4.231]
[1753982818054,2.64158918,3785.6,3785.3,4.231]
[1753982818576,0.4503,3785.5,3785.3,4.231]
[1753982818992,0.4503,3786.0,3785.4,2.64172874]
[1753982819194,3.09161803,3786.0,3785.3,6.87277195]
[1753982819342,3.09161803,3786.0,3785.4,2.64170816]
[1753982819540,3.09161803,3786.0,3785.5,4.229]
[1753982819745,3.0,3786.7,3785.5,4.229]
[1753982819984,3.0,3786.3,3785.8,2.64142195]
[1753982820238,0.4503,3786.4,3785.9,4.227]
[1753982820445,0.04,3786.9,3786.0,4.227]
[1753982820446,0.4503,3786.3,3786.0,4.227]
[1753982820599,0.04,3786.9,3786.0,12.1363]
[1753982820937,0.04,3786.9,3786.1,0.4866]
[1753982821116,0.04,3786.9,3786.4,2.64102642]
[1753982821294,0.04,3786.9,3786.2,2.64111078]
[1753982821295,0.4503,3786.8,3786.5,6.86693538]
[1753982821498,2.6411334,3786.3,3786.0,7.0]
[1753982821738,3.09147056,3786.2,3786.1,4.24]
[1753982821938,2.64124032,3786.1,3786.0,7.0]
[1753982822142,3.09154032,3786.1,3786.0,11.24]
[1753982822327,0.4503,3786.1,3786.0,11.24]
[1753982822522,3.09154032,3786.1,3786.0,11.24]
[1753982822738,3.09154032,3786.1,3786.0,7.0]
[1753982822937,3.69122148,3786.1,3786.0,11.24]
[1753982823139,3.69122148,3786.1,3786.0,0.72729431]
[1753982823140,7.24122148,3786.1,3786.0,0.72729431]
[1753982823341,0.55,3785.8,3785.1,4.24]
[1753982823639,2.64186832,3785.2,3785.1,4.24]
[1753982824008,3.09216832,3785.2,3785.1,4.24]
[1753982824401,2.64193812,3785.1,3785.0,0.132]
[1753982824629,3.66564876,3785.1,3785.0,0.132]
[1753982824833,4.24867298,3785.1,3785.0,0.132]
[1753982825144,2.64214753,3784.8,3784.7,4.238]
[1753982825454,0.4503,3785.2,3784.4,6.87936869]
[1753982825611,3.09218022,3785.2,3785.0,0.132]
[1753982825812,3.09223812,3785.1,3785.0,0.132]
[1753982826742,3.90706001,3785.1,3785.0,0.132]
[1753982827107,3.90706001,3785.1,3784.1,4.7646]
[1753982827108,2.64256646,3784.2,3784.1,0.04]
[1753982827303,2.64326496,3783.2,3782.2,0.4866]
[1753982827590,9.85773211,3783.2,3783.1,0.172]
[1753982827718,9.85773211,3783.2,3783.1,0.04]
[1753982827906,10.30803211,3783.2,3783.1,0.04]
[1753982828107,13.85803211,3783.2,3783.1,0.04]
[1753982828509,5.64389392,3782.3,3782.1,0.04]
[1753982828810,3.50578316,3782.2,3782.1,0.04]
[1753982829009,3.12731337,3782.2,3782.1,0.04]
[1753982829211,3.09426383,3782.2,3782.1,0.04]
[1753982829415,3.0,3782.5,3782.1,0.04]
[1753982829645,3.09385326,3782.8,3782.1,0.04]
[1753982829806,3.0,3782.7,3782.4,0.132]
[1753982830011,3.4503,3782.8,3782.4,0.132]
[1753982830247,0.132,3783.0,3782.4,0.132]
[1753982830619,0.132,3783.0,3782.6,2.64367184]
[1753982830844,0.132,3783.0,3782.6,0.59061541]
[1753982831043,0.55,3783.5,3782.7,3.13016285]
[1753982831207,3.09316588,3783.8,3782.9,0.132]
[1753982831550,3.0,3783.7,3783.2,0.132]
[1753982831736,2.64363527,3782.7,3782.4,4.239]
[1753982831942,3.09398423,3782.6,3782.5,0.132]
[1753982832114,2.64375413,3782.5,3782.4,4.239]
[1753982832448,0.4503,3782.5,3782.4,4.239]
[1753982832655,3.09405413,3782.5,3782.4,4.239]
[1753982833025,0.4503,3782.5,3782.4,4.239]
[1753982833220,0.132,3782.7,3782.2,0.132]
[1753982833420,0.4503,3783.0,3782.1,0.04]
[1753982833616,2.64347458,3782.9,3782.1,0.51492]
[1753982833822,0.132,3782.9,3782.4,0.132]
[1753982834023,5.2393,3783.5,3782.1,0.04]
[1753982834247,5.2393,3783.5,3782.8,0.132]
[1753982834248,0.132,3783.3,3782.8,0.132]
[1753982834449,2.64330219,3783.2,3782.8,0.132]
[1753982834765,0.24079148,3783.1,3782.8,0.4866]
[1753982834967,0.24079148,3783.0,3782.8,0.4866]
[1753982835210,0.24079148,3782.9,3782.8,3.11274446]
[1753982835354,6.68583512,3783.9,3782.8,4.237]
[1753982835555,2.64318241,3783.4,3783.0,0.132]
[1753982835754,0.24059124,3783.3,3783.2,0.132]
[1753982835988,3.132,3783.9,3783.2,0.132]
[1753982836191,0.132,3783.9,3783.2,0.132]
[1753982836391,0.24057156,3784.0,3783.6,2.64296304]
[1753982836653,0.2404562,3783.9,3783.7,0.4763]
[1753982836857,2.64222068,3784.7,3783.8,0.9136]
[1753982837082,0.48090837,3784.6,3783.8,0.6083]
[1753982837393,0.48090837,3784.6,3783.6,3.21920021]
[1753982837394,2.642469,3784.4,3783.6,0.57623883]
[1753982837699,0.24045426,3784.3,3784.1,0.132]
[1753982837865,0.2403788,3784.2,3784.1,0.132]
[1753982838071,3.0,3784.6,3784.1,0.132]
[1753982838254,0.24039523,3784.5,3784.1,0.132]
[1753982838656,2.64268645,3784.1,3783.6,4.24]
[1753982838955,2.64276148,3784.0,3783.9,0.132]
[1753982839154,3.09316148,3784.0,3783.9,0.132]
[1753982839364,2.64285027,3783.8,3782.8,6.88249345]
[1753982839598,2.64289948,3783.8,3782.9,0.4763]
[1753982839770,2.64289948,3783.8,3783.5,0.132]
[1753982839951,3.5824,3784.0,3783.5,0.132]
[1753982840161,2.64298551,3783.6,3783.5,0.132]
[1753982840700,2.64333483,3783.1,3781.9,0.4763]
[1753982840864,0.55,3782.8,3782.5,0.132]
[1753982841064,2.64376308,3782.5,3782.2,0.132]
[1753982841280,2.64396383,3782.2,3781.2,0.4373]
[1753982841487,2.64396383,3782.2,3781.7,0.132]
[1753982842010,2.64396383,3782.2,3782.1,0.172]
[1753982842607,0.132,3782.6,3782.1,0.6483]
[1753982843024,3.0,3782.7,3782.1,0.6483]
[1753982843025,3.0,3782.7,3782.2,0.4763]
[1753982843227,5.64364106,3782.7,3782.4,0.132]
[1753982843527,2.64371186,3782.6,3782.4,0.132]
[1753982843697,2.64396383,3782.2,3782.1,0.04]
[1753982844030,3.32596383,3782.2,3782.1,0.04]
[1753982844201,3.77636383,3782.2,3782.1,0.04]
[1753982844727,3.0,3782.8,3782.1,0.04]
[1753982845032,0.33047326,3783.6,3782.1,0.04]
[1753982845033,6.68583512,3784.2,3782.1,5.3296]
[1753982845324,3.0,3783.4,3782.7,0.132]
[1753982845500,3.0,3783.4,3782.2,1.44656]
[1753982845501,0.2731101,3783.3,3782.1,4.284]
[1753982845701,2.64347458,3782.9,3782.8,0.132]
[1753982845887,2.64338848,3783.1,3782.8,0.132]
[1753982845888,2.64339184,3783.1,3782.8,0.132]
[1753982846089,2.88355275,3783.0,3782.2,3.12025349]
[1753982846289,2.64349385,3782.9,3782.6,0.132]
[1753982846488,0.132,3783.3,3782.6,0.4763]
[1753982846729,0.4504,3784.6,3782.7,0.4373]
[1753982846938,0.132,3784.4,3783.8,0.132]
[1753982847101,0.24018032,3784.4,3784.0,2.64265049]
[1753982847300,0.24018032,3784.3,3783.6,4.246]
[1753982847613,0.04,3784.9,3784.3,0.132]
[1753982847812,2.68208268,3784.9,3784.2,0.132]
[1753982848031,2.68208268,3784.9,3784.5,2.64233533]
[1753982848032,0.48052218,3784.8,3784.5,2.64233533]
[1753982848238,0.48052218,3784.7,3784.6,3.55588716]
[1753982848403,0.48052218,3784.7,3784.6,3.07958716]
[1753982848590,0.48052218,3784.7,3784.6,4.55268767]
[1753982849109,0.24026109,3784.7,3784.6,4.68468767]
[1753982849315,0.04,3784.9,3784.6,2.04240051]
[1753982849506,0.04,3784.9,3784.8,2.77414753]
[1753982849702,0.04,3784.9,3784.8,0.132]
[1753982849908,0.04,3784.9,3784.8,1.0456]
[1753982850869,0.04,3784.9,3784.8,0.6083]
[1753982851080,2.68207772,3784.9,3784.8,0.132]
[1753982851766,2.64251975,3784.3,3784.0,4.243]
[1753982851970,2.6424098,3784.5,3784.0,4.243]
[1753982852172,2.64230489,3784.6,3784.1,0.4763]
[1753982852348,2.64241236,3784.5,3784.0,4.243]
[1753982852547,2.64241236,3784.5,3784.2,0.4763]
[1753982852750,0.97886153,3784.5,3783.5,0.4763]
[1753982852941,2.64258158,3784.2,3783.8,4.24]
[1753982853430,0.55,3784.8,3783.9,0.4763]
[1753982853632,2.64224204,3784.7,3784.0,0.4373]
[1753982853875,0.04,3784.9,3784.1,0.4763]
[1753982854280,2.64214753,3784.8,3784.1,0.4763]
[1753982854480,0.04,3784.9,3784.1,0.4763]
[1753982854634,2.64256646,3784.2,3784.1,4.237]
[1753982855659,2.6424268,3784.4,3784.1,4.7133]
[1753982855859,2.64249828,3784.3,3784.2,0.4763]
[1753982856432,2.64256646,3784.2,3784.1,4.237]
[1753982856636,2.64235698,3784.5,3784.1,4.237]
[1753982856848,0.04,3784.9,3784.1,4.7133]
[1753982856849,2.64256646,3784.2,3784.1,4.7133]
[1753982857278,2.64237096,3784.5,3784.1,4.7133]
[1753982857461,2.64237096,3784.5,3784.2,0.4763]
[1753982857665,2.6424293,3784.4,3784.2,0.4763]
[1753982857850,2.64249663,3784.3,3784.2,0.4763]
[1753982858054,0.04,3784.9,3784.2,0.4763]
[1753982858478,2.64220441,3784.8,3784.2,0.4763]
[1753982858681,0.04,3784.9,3784.2,0.4763]
[1753982858840,2.64238675,3784.5,3784.2,0.4763]
[1753982859185,2.64214753,3784.8,3784.3,4.234]
[1753982859344,2.64227093,3784.7,3784.3,4.234]
[1753982859673,0.87745101,3784.8,3784.3,4.7103]
[1753982860060,0.04,3784.9,3784.4,0.9136]
[1753982860262,0.04,3784.9,3784.4,2.64237525]
[1753982860467,0.04,3784.9,3784.5,0.9136]
[1753982860839,2.6424268,3784.4,3783.7,2.64284761]
[1753982861080,0.55,3784.8,3783.8,0.4763]
[1753982861278,2.64228716,3784.6,3783.8,0.4763]
[1753982861499,0.991115,3784.5,3783.9,4.23]
[1753982861641,2.6424268,3784.4,3784.3,0.132]
[1753982861964,0.04,3784.9,3784.4,0.132]
[1753982862283,2.64237072,3784.5,3784.3,0.132]
[1753982862581,2.64233614,3784.6,3784.4,0.4763]
[1753982862899,0.04,3784.9,3784.5,0.4763]
[1753982863095,2.68210442,3784.9,3784.5,0.4763]
[1753982863296,2.68207909,3784.9,3784.7,0.132]
[1753982863439,0.50511141,3784.9,3784.7,0.132]
[1753982863789,0.50511141,3784.9,3784.8,0.9136]
[1753982863790,2.68207772,3784.9,3784.8,0.9136]
[1753982864076,0.04,3784.9,3784.8,0.4763]
[1753982864398,2.68207772,3784.9,3784.8,0.4763]
[1753982864600,2.64214753,3784.8,3784.7,0.132]
[1753982864912,0.04,3784.9,3784.8,0.4763]
[1753982865046,0.04,3784.9,3784.8,3.55574753]
[1753982865290,2.64128532,3786.1,3784.9,2.64207772]
[1753982865494,0.48244818,3786.0,3785.8,0.132]
[1753982865731,0.28122423,3785.9,3785.8,0.132]
[1753982865931,2.92260408,3785.9,3785.8,0.132]
[1753982866317,0.28122423,3785.9,3785.8,0.132]
[1753982866518,0.28122423,3785.9,3785.8,2.77344962]
[1753982866808,0.04,3785.9,3785.8,3.6059535]
[1753982867024,0.002,3786.4,3785.8,3.6059535]
[1753982867223,0.24322423,3786.4,3786.3,2.64110081]
[1753982867426,0.24322423,3786.4,3786.3,0.132]
[1753982867628,0.002,3786.4,3786.3,7.00110081]
[1753982867936,0.002,3786.4,3786.3,7.96533147]
[1753982869646,0.002,3786.4,3786.3,0.132]
[1753982869824,2.64313213,3786.3,3786.1,4.236]
[1753982870025,0.002,3786.3,3786.2,4.236]
[1753982870206,0.002,3786.3,3786.2,3.736]
[1753982871044,0.002,3786.3,3786.2,6.37717056]
[1753982871244,0.002,3786.3,3786.2,3.736]
[1753982871966,0.002,3786.3,3785.7,2.64151007]
[1753982872114,0.002,3786.3,3785.8,4.236]
[1753982872309,0.002,3786.3,3786.2,2.64117056]
[1753982872659,0.002,3786.3,3786.2,4.233]
[1753982872840,0.002,3786.3,3786.2,6.87317056]
[1753982873159,0.002,3786.3,3786.2,7.29647056]
[1753982873462,0.002,3786.3,3786.2,4.232]
[1753982873767,0.002,3786.3,3786.2,6.87317056]
[1753982876875,0.002,3786.3,3786.2,9.87317056]
[1753982877379,0.002,3786.3,3786.2,9.86517056]
[1753982877584,0.002,3786.3,3784.7,3.0]
[1753982877874,0.002,3786.3,3786.1,2.64118558]
[1753982878082,0.002,3786.3,3786.2,4.227]
[1753982878370,0.4858,3786.2,3784.7,0.4878]
[1753982878660,0.4858,3786.2,3785.4,2.64168454]
[1753982878864,0.4858,3786.2,3785.5,4.228]
[1753982879224,3.08712846,3786.2,3785.5,4.228]
[1753982879423,0.4459,3786.2,3785.5,4.228]
[1753982879637,0.002,3786.3,3785.2,3.0]
[1753982879870,0.002,3786.3,3786.1,0.132]
[1753982880047,0.002,3786.3,3786.2,4.226]
[1753982880294,0.002,3786.3,3783.2,0.433]
[1753982880295,0.4459,3786.2,3783.2,0.433]
[1753982880455,2.64256646,3784.2,3783.1,6.58300913]
[1753982880653,3.12836646,3784.2,3783.1,6.385]
[1753982880856,3.12836646,3784.2,3783.9,4.232]
[1753982881171,3.16139854,3784.2,3783.1,6.385]
[1753982881373,3.16139854,3784.2,3783.3,4.231]
[1753982881374,4.76780324,3784.2,3783.3,4.231]
[1753982881681,2.64312523,3783.4,3783.3,4.231]
[1753982881832,2.64326496,3783.2,3783.1,0.04]
[1753982882166,0.51883993,3783.3,3783.1,0.04]
[1753982882343,2.64326496,3783.2,3783.1,0.04]
[1753982882543,0.4459,3783.2,3783.1,0.04]
[1753982882890,5.64305067,3783.6,3783.1,0.04]
[1753982883369,3.0,3783.7,3783.1,0.04]
[1753982883568,0.4459,3783.6,3783.1,0.04]
[1753982883930,0.55,3783.4,3783.1,0.04]
[1753982884273,2.64326496,3783.2,3783.1,0.04]
[1753982884646,0.4459,3783.2,3783.1,0.04]
[1753982884852,3.12906496,3783.2,3783.1,0.04]
[1753982885068,0.4858,3783.2,3783.1,0.04]
[1753982885373,2.64320453,3783.3,3783.1,0.04]
[1753982885539,3.08916496,3783.2,3783.1,0.04]
[1753982885729,0.4459,3783.2,3783.1,0.04]
[1753982885931,9.32883543,3783.6,3783.1,0.04]
[1753982886266,2.64322796,3783.3,3783.1,0.04]
[1753982886457,1.42267354,3783.5,3783.1,0.04]
[1753982886773,4.02588814,3783.5,3783.1,0.04]
[1753982887067,0.4858,3783.9,3783.1,0.04]
[1753982887271,2.64314062,3783.4,3783.1,0.04]
[1753982887489,0.4858,3783.9,3783.1,0.04]
[1753982887815,0.4858,3783.9,3783.2,4.234]
[1753982887816,0.4459,3783.9,3783.2,4.234]
[1753982888076,2.64289613,3783.8,3783.2,4.234]
[1753982888266,0.66387961,3783.8,3783.2,4.234]
[1753982888637,0.66387961,3783.8,3783.2,6.87720916]
[1753982888946,2.6424261,3784.5,3783.2,4.234]
[1753982889170,0.93038831,3784.4,3783.3,0.4878]
[1753982889342,0.24224916,3784.3,3783.3,0.9208]
[1753982889550,6.92808428,3784.2,3783.4,4.23]
[1753982889742,6.92808428,3784.2,3783.3,4.23]
[1753982889743,2.64317903,3783.4,3783.3,4.23]
[1753982889942,2.64312523,3783.4,3783.3,4.23]
[1753982890391,2.64291566,3783.7,3783.3,4.23]
[1753982890534,2.64326496,3783.2,3783.1,0.04]
[1753982890875,2.77510489,3783.5,3783.1,0.04]
[1753982891090,1.34239059,3783.5,3783.1,0.04]
[1753982891371,2.64313558,3783.4,3783.1,0.04]
[1753982891574,3.85350155,3783.5,3783.1,0.04]
[1753982891877,2.64326496,3783.2,3783.1,0.04]
[1753982892172,3.22630577,3783.2,3783.1,0.04]
[1753982892341,4.44883548,3783.2,3783.1,0.04]
[1753982892545,3.65504136,3783.2,3783.1,0.04]
[1753982892760,3.41303548,3783.2,3783.1,0.04]
[1753982893131,3.85893548,3783.2,3783.1,0.04]
[1753982894134,1.21039059,3783.5,3783.1,0.04]
[1753982894363,2.64298806,3783.6,3783.1,0.172]
[1753982894683,2.6428768,3783.8,3783.7,0.132]
[1753982894973,6.68583512,3784.2,3783.5,0.132]
[1753982894974,0.4459,3784.1,3783.5,0.132]
[1753982895271,9.32841146,3784.2,3783.7,0.132]
[1753982895526,9.32841146,3784.2,3783.1,0.04]
[1753982895527,2.64326496,3783.2,3783.1,0.04]
[1753982895749,3.19326496,3783.2,3783.1,0.04]
[1753982895905,3.22116496,3783.2,3783.1,0.04]
[1753982896089,2.77526496,3783.2,3783.1,0.04]
[1753982896712,3.78470945,3783.2,3783.1,0.04]
[1753982897315,7.40765026,3783.2,3783.1,0.04]
[1753982897500,7.37460945,3783.2,3783.1,0.04]
[1753982898246,3.19347458,3782.9,3782.8,0.001]
[1753982898445,3.19396383,3782.2,3782.1,0.04]
[1753982898590,6.19424348,3781.8,3781.7,0.001]
[1753982898783,5.64424348,3781.8,3781.7,0.001]
[1753982899223,0.31939638,3782.2,3781.7,0.001]
[1753982899461,3.0,3782.2,3781.8,0.132]
[1753982899750,0.132,3782.4,3781.8,0.132]
[1753982899939,2.6440838,3782.1,3781.8,0.132]
[1753982900142,2.77583417,3782.4,3781.8,0.132]
[1753982900348,2.64382446,3782.4,3781.8,0.4771]
[1753982900652,2.77577143,3782.5,3782.0,0.132]
[1753982900850,0.132,3782.5,3782.0,0.132]
[1753982901055,0.132,3782.7,3782.2,2.64396383]
[1753982901263,7.22767961,3783.2,3782.2,2.64396383]
[1753982901264,2.64337453,3783.1,3782.4,2.77580348]
[1753982901415,7.35967961,3783.2,3782.3,0.9104]
[1753982901761,2.64349016,3782.9,3782.6,0.132]
[1753982901908,3.0,3783.1,3782.6,0.132]
[1753982902112,2.64361228,3782.8,3782.6,0.132]
[1753982902350,2.64361434,3782.7,3782.6,0.132]
[1753982902564,2.64392845,3782.3,3782.1,4.228]
[1753982902911,2.64387013,3782.4,3782.1,4.228]
[1753982903111,2.64387521,3782.4,3782.1,4.7051]
[1753982903316,2.64396383,3782.2,3782.1,4.228]
[1753982903962,2.64396383,3782.2,3781.7,0.001]
[1753982903963,2.64424348,3781.8,3781.7,0.001]
[1753982904237,2.77624348,3781.8,3781.7,0.001]
[1753982904611,3.82689652,3781.8,3781.7,0.001]
[1753982904856,3.79384348,3781.8,3781.7,0.001]
[1753982905151,4.63862709,3781.8,3781.7,0.001]
[1753982906852,4.08862709,3781.8,3781.7,0.001]
[1753982907051,2.77624348,3781.8,3781.7,0.001]
[1753982907467,3.82689652,3781.8,3781.7,0.001]
[1753982907672,3.79384348,3781.8,3781.7,0.001]
[1753982907842,2.64494286,3780.8,3780.7,0.4771]
[1753982908234,2.64508279,3780.6,3780.5,4.223]
[1753982908436,2.64552227,3780.0,3779.8,0.4771]
[1753982908657,0.0330644,3780.5,3779.5,4.6563]
[1753982908971,3.0,3780.9,3779.9,3.25465493]
[1753982909173,9.33055592,3781.2,3780.0,0.9104]
[1753982909174,2.64519585,3780.5,3780.0,0.9104]
[1753982909390,3.0,3781.0,3780.1,4.224]
[1753982909561,2.64534991,3780.3,3780.1,4.224]
[1753982909746,2.64527252,3780.4,3780.2,0.6091]
[1753982910072,0.132,3780.9,3780.3,0.9104]
[1753982910278,4.224,3781.6,3780.4,0.4771]
[1753982910436,2.64487291,3780.9,3780.8,0.132]
[1753982910636,0.03306003,3781.0,3780.4,0.4771]
[1753982910864,2.64515275,3780.5,3780.4,0.4771]
[1753982911244,2.64515275,3780.5,3780.4,0.132]
[1753982911591,2.64543266,3780.1,3780.0,0.4771]
[1753982911756,1.20090642,3780.5,3780.0,0.4771]
[1753982911940,2.64543266,3780.1,3780.0,0.4771]
[1753982912289,1.20090642,3780.5,3780.1,0.132]
[1753982912583,1.20090642,3780.5,3779.3,0.4333]
[1753982912584,2.64537785,3780.2,3779.8,0.132]
[1753982912740,1.20090642,3780.5,3780.1,0.4771]
[1753982912941,6.68583512,3781.3,3780.2,0.9104]
[1753982913136,3.0,3781.3,3780.8,0.132]
[1753982913335,3.0,3781.0,3780.9,0.4771]
[1753982913563,2.64480296,3781.0,3780.9,0.4771]
[1753982913773,0.132,3781.4,3780.9,0.4771]
[1753982913934,0.132,3781.4,3781.0,0.4771]
[1753982914171,2.64459312,3781.3,3781.0,0.4771]
[1753982914483,3.0,3781.6,3781.1,0.4771]
[1753982914686,0.132,3781.9,3781.4,0.132]
[1753982915012,2.64445325,3781.5,3781.4,0.132]
[1753982915195,2.64432419,3781.7,3781.4,0.6091]
[1753982915374,2.77623059,3781.9,3781.5,0.9104]
[1753982915576,2.6439623,3782.3,3781.6,0.9104]
[1753982915777,5.21248143,3782.2,3779.4,0.4771]
[1753982916011,6.68583512,3780.4,3779.5,0.6091]
[1753982916212,0.132,3780.2,3779.6,0.4771]
[1753982916397,3.0,3780.6,3779.7,4.60162988]
[1753982916596,0.132,3780.9,3780.6,0.001]
[1753982916781,5.64501282,3780.7,3780.6,0.001]
[1753982917473,0.55,3780.4,3779.3,0.4333]
[1753982917790,2.64611701,3779.2,3778.8,4.247]
[1753982918120,2.63911034,3779.2,3779.1,0.132]
[1753982918580,2.64596916,3779.4,3779.1,0.132]
[1753982918777,2.64550576,3780.0,3779.1,1.0424]
[1753982918975,2.64564262,3779.8,3779.3,0.132]
[1753982919311,2.64558367,3779.9,3779.7,0.132]
[1753982919722,6.68583512,3780.2,3779.8,0.4333]
[1753982920025,2.64543366,3780.1,3779.7,0.132]
[1753982920219,6.68583512,3780.2,3779.7,0.132]
[1753982920454,2.64564262,3779.8,3779.1,0.4771]
[1753982920721,9.68583512,3779.6,3778.8,0.4333]
[1753982921016,9.68583512,3779.6,3778.9,3.12333473]
[1753982921017,6.68583512,3779.6,3778.9,3.12333473]
[1753982921312,2.64599266,3779.3,3778.9,0.4771]
[1753982921503,6.68583512,3779.6,3779.2,0.132]
[1753982921716,6.68583512,3779.6,3779.2,0.6091]
[1753982921717,2.64585262,3779.5,3779.2,0.6091]
[1753982922011,6.68583512,3779.6,3779.2,0.6091]
[1753982922214,6.68583512,3779.6,3779.3,0.4771]
[1753982922525,2.64655225,3778.6,3778.3,0.4771]
[1753982922732,6.68583512,3778.8,3777.9,4.247]
[1753982923034,6.68583512,3778.2,3778.1,0.132]
[1753982923474,9.33259812,3778.2,3777.5,0.4771]
[1753982923813,6.68583512,3778.2,3777.9,0.132]
[1753982923975,0.132,3778.6,3778.1,0.132]
[1753982924175,2.77853177,3778.6,3778.2,0.4771]
[1753982924386,2.64655286,3778.5,3778.1,0.132]
[1753982924586,0.83776033,3778.6,3778.1,0.132]
[1753982925013,0.83776033,3778.6,3778.2,0.4771]
[1753982925333,0.132,3778.8,3778.3,0.9104]
[1753982925555,0.132,3779.6,3779.0,2.64618268]
[1753982925765,0.132,3779.6,3779.0,0.132]
[1753982925766,0.37300199,3779.6,3779.0,0.132]
[1753982926058,0.132,3779.6,3779.0,3.25530113]
[1753982926357,0.132,3779.6,3779.0,0.6091]
[1753982926661,0.24103086,3779.6,3779.3,0.132]
[1753982926863,6.68583512,3780.4,3779.5,0.132]
[1753982927071,1.57525951,3780.3,3779.5,0.132]
[1753982927364,2.6455148,3780.0,3779.5,0.132]
[1753982927568,6.68583512,3779.8,3779.5,0.132]
[1753982927796,2.64578262,3779.6,3779.5,0.132]
[1753982927925,6.68583512,3779.0,3778.0,0.4658]
[1753982928124,2.64649446,3778.6,3777.4,4.251]
[1753982928338,3.0,3778.8,3777.5,0.9298]
[1753982928552,0.24098088,3778.7,3777.6,0.4658]
[1753982928752,0.24097762,3778.6,3777.6,0.4658]
[1753982928970,0.55,3778.8,3777.6,0.4658]
[1753982929271,2.64700562,3777.9,3776.7,4.249]
[1753982929470,6.68583512,3778.1,3777.5,0.4658]
[1753982929624,0.03308628,3778.0,3777.5,0.4658]
[1753982929829,2.64690911,3778.0,3777.5,0.4658]
[1753982930030,2.64697318,3777.9,3777.5,0.4658]
[1753982930257,2.6470561,3777.8,3777.5,0.4658]
[1753982930482,6.68583512,3778.1,3777.5,0.4658]
[1753982930642,7.61909264,3778.1,3777.5,0.4658]
[1753982930840,7.61909264,3778.1,3776.6,3.0]
[1753982931069,2.6471409,3777.7,3776.9,0.4658]
[1753982931231,2.64742372,3777.3,3776.9,0.4658]
[1753982931435,2.64725347,3777.5,3776.9,0.4658]
[1753982931664,2.6471613,3777.7,3777.0,2.64755966]
[1753982931847,0.55,3778.0,3777.0,3.57735966]
[1753982931848,3.19691765,3778.0,3777.0,3.57735966]
[1753982932053,4.22742558,3778.0,3777.1,0.4658]
[1753982932244,2.64697964,3777.9,3777.1,0.4658]
[1753982932545,4.22742558,3778.0,3777.3,2.64732483]
[1753982932546,2.64690312,3778.0,3777.3,2.64732483]
[1753982932870,4.259,3779.0,3777.4,7.8360801]
[1753982933066,2.64654255,3778.6,3777.6,2.64715103]
[1753982933286,0.4259,3778.9,3777.7,0.4658]
[1753982933432,0.24094731,3778.8,3777.8,0.464]
[1753982933635,2.64620269,3779.0,3778.1,2.6468308]
[1753982933835,2.64634318,3778.8,3778.2,0.4658]
[1753982934165,0.24094674,3778.7,3778.2,0.4658]
[1753982934329,3.0,3779.2,3778.3,0.4658]
[1753982934536,6.68583512,3778.7,3777.8,0.4658]
[1753982934838,0.27400559,3778.6,3777.8,0.4658]
[1753982935141,0.24092456,3778.6,3778.0,2.64690312]
[1753982935359,0.24092456,3778.6,3777.9,0.464]
[1753982935360,0.24092456,3778.6,3778.1,0.4658]
[1753982935555,2.64662341,3778.4,3777.8,0.4658]
[1753982935727,9.33225017,3778.7,3777.8,0.4658]
[1753982935728,2.64655518,3778.5,3777.8,0.4658]
[1753982935927,2.64657253,3778.5,3777.8,0.4658]